bitfinex/quotes_ETHUSD_20220201
["timestamp","ask_amount","ask_price","bid_price","bid_amount"]
[1643703764847,1.53526349,2749.0,2748.6,0.43370532]
[1643703765047,1.53526349,2748.9,2748.6,0.43370532]
[1643703765447,1.53526349,2748.9,2748.3,1.39137]
[1643703765650,1.53526349,2748.9,2748.3,0.4817]
[1643703766047,0.1819,2748.8,2748.3,0.1817]
[1643703766248,1.53526349,2748.7,2748.3,0.1817]
[1643703766649,1.71716349,2748.6,2748.3,0.59291132]
[1643703766852,1.53526349,2748.5,2748.3,0.41121132]
[1643703767148,1.53526349,2748.5,2748.1,1.4716]
[1643703767350,1.53526349,2748.4,2747.9,2.30136]
[1643703767558,0.9173709,2748.7,2747.9,2.30136]
[1643703767559,1.53526349,2748.3,2747.9,2.30136]
[1643703767749,0.9173709,2748.7,2747.9,2.30136]
[1643703767950,1.53533219,2748.6,2747.9,0.4819]
[1643703768149,0.40807836,2748.4,2747.9,0.1819]
[1643703768359,1.53533219,2748.3,2747.9,0.1819]
[1643703769800,1.53533219,2748.2,2747.8,0.51845762]
[1643703770000,1.53533219,2748.1,2747.8,0.33655762]
[1643703770201,1.53533219,2748.0,2747.8,0.33655762]
[1643703770400,1.9467005,2748.5,2747.8,0.33655762]
[1643703770605,1.53546992,2748.4,2747.8,0.33655762]
[1643703770800,1.53546992,2748.3,2747.8,0.33655762]
[1643703771003,1.53546992,2748.3,2747.9,0.90985]
[1643703771200,1.53546992,2748.3,2747.9,1.20985]
[1643703771704,1.53546992,2748.2,2747.9,1.20985]
[1643703771900,0.1819,2748.6,2747.9,1.20985]
[1643703771901,1.53546992,2748.1,2747.9,1.20985]
[1643703772100,1.53546992,2748.0,2747.9,1.20985]
[1643703772586,3.43974146,2748.5,2747.9,1.20985]
[1643703772757,1.93235358,2748.4,2747.9,1.20985]
[1643703772957,3.57081543,2748.3,2747.9,1.20985]
[1643703773160,1.53546992,2748.2,2747.6,3.24022]
[1643703773371,1.53546992,2748.2,2747.4,3.5]
[1643703773372,0.68911884,2748.0,2747.4,3.5]
[1643703773564,2.88386237,2747.9,2746.7,0.00209246]
[1643703773862,2.22458876,2747.8,2746.7,0.00209246]
[1643703774162,2.22458876,2747.8,2746.6,1.1389]
[1643703774163,0.91700012,2747.0,2746.6,1.45477247]
[1643703774373,0.91700012,2747.0,2746.6,0.31587247]
[1643703775362,2.1819,2747.5,2746.6,0.31587247]
[1643703775563,2.44632767,2747.4,2746.6,0.31587247]
[1643703775780,1.71790657,2747.3,2746.6,0.31587247]
[1643703775995,1.53600657,2747.2,2746.6,0.31587247]
[1643703776297,0.1819,2747.4,2746.6,0.31587247]
[1643703776497,2.34855594,2747.3,2746.7,0.1819]
[1643703776697,0.81263118,2747.3,2746.7,0.1819]
[1643703777796,0.81263118,2747.3,2746.6,0.49777247]
[1643703777797,0.42687377,2747.1,2746.6,0.49777247]
[1643703777997,0.42687377,2747.1,2746.7,0.91021]
[1643703778196,0.42687377,2747.1,2746.7,1.21021]
[1643703779202,0.81263118,2747.3,2746.7,1.21021]
[1643703780248,1.23024837,2747.8,2746.8,0.91016]
[1643703780450,1.23024837,2747.8,2746.9,1.28112218]
[1643703780451,1.53584167,2747.7,2746.9,1.28112218]
[1643703780652,1.53584167,2747.7,2746.8,1.01948888]
[1643703780849,0.13819997,2747.9,2746.9,1.30770484]
[1643703780850,1.53584167,2747.6,2746.9,1.30770484]
[1643703781070,0.13819997,2747.9,2746.9,1.60770484]
[1643703781251,0.79303163,2747.7,2746.9,2.27844521]
[1643703781451,0.39154198,2747.8,2747.3,0.35417407]
[1643703781652,0.39154198,2747.8,2747.3,1.26410407]
[1643703781853,0.39154198,2747.8,2747.4,0.3]
[1643703782652,1.3239924,2747.8,2747.4,0.3]
[1643703783901,0.93245042,2747.8,2747.3,1.09183]
[1643703784500,0.93245042,2747.8,2747.3,0.1819]
[1643703785002,0.32217693,2747.6,2747.3,0.1819]
[1643703785299,0.93245042,2747.8,2747.2,0.1819]
[1643703785500,0.93245042,2747.8,2747.1,1.09187]
[1643703787007,0.36513534,2747.7,2747.2,1.29279046]
[1643703787272,0.36513534,2747.7,2747.3,0.3]
[1643703788555,0.93245042,2747.8,2747.3,0.3]
[1643703789059,0.13819997,2747.9,2747.3,0.3]
[1643703789259,2.9230844,2748.9,2747.3,0.3]
[1643703789260,0.9099306,2748.3,2747.4,2.0]
[1643703789463,1.53581934,2748.2,2747.5,0.437]
[1643703789660,8.2184,2749.2,2748.1,0.39187716]
[1643703789661,0.1819,2748.7,2748.1,0.39187716]
[1643703789861,1.53570798,2748.6,2748.1,0.41452345]
[1643703790058,1.53570798,2748.6,2748.1,0.02264629]
[1643703790059,1.71760798,2748.5,2748.1,0.02264629]
[1643703790258,1.53570798,2748.4,2748.1,0.93227629]
[1643703790457,1.53570798,2748.4,2748.1,0.90963]
[1643703790658,0.75956557,2748.6,2748.1,0.90963]
[1643703790862,0.75956557,2748.6,2748.1,1.20963]
[1643703790863,1.53561426,2748.5,2748.1,1.20963]
[1643703791094,1.53561426,2748.5,2748.1,2.30115]
[1643703791297,1.94400927,2748.5,2748.2,0.3]
[1643703791495,0.40839501,2748.5,2748.2,0.3]
[1643703791693,0.40839501,2748.5,2748.2,2.17504614]
[1643703796160,0.40839501,2748.5,2748.2,0.3]
[1643703796356,0.40839501,2748.5,2748.1,0.3]
[1643703796962,0.64489846,2748.0,2747.3,3.2704]
[1643703797164,0.40839501,2748.5,2747.3,1.2414]
[1643703797165,0.1819,2747.9,2747.3,1.2414]
[1643703797366,0.1819,2748.4,2747.3,2.33325]
[1643703797567,0.42545505,2748.0,2747.4,0.41118907]
[1643703797976,0.42545505,2748.0,2747.4,2.36147478]
[1643703797977,1.25809772,2748.0,2747.4,2.36147478]
[1643703798164,1.25809772,2748.0,2747.4,0.71118907]
[1643703798595,1.25809772,2748.0,2747.5,0.90991]
[1643703798797,0.42411927,2748.0,2747.6,1.93461538]
[1643703799027,0.42411927,2748.0,2747.4,3.20266625]
[1643703799198,0.42411927,2748.0,2747.5,1.81965]
[1643703799397,0.42411927,2748.0,2747.6,1.93162719]
[1643703799599,0.42411927,2748.0,2747.6,2.23162719]
[1643703799798,0.42411927,2748.0,2747.6,0.6]
[1643703799998,0.42411927,2748.0,2747.6,0.3]
[1643703800203,0.42411927,2748.0,2747.5,3.02949]
[1643703800400,0.60601927,2748.0,2747.5,2.11965]
[1643703803051,1.53589474,2747.9,2747.5,2.11965]
[1643703803850,0.42411927,2748.0,2747.5,2.11965]
[1643703804052,0.42411927,2748.0,2747.5,4.00969149]
[1643703805255,0.42411927,2748.0,2747.5,4.30969149]
[1643703805556,0.40977976,2748.0,2747.5,4.30969149]
[1643703806000,0.40977976,2748.0,2747.5,1.81965]
[1643703806206,0.40977976,2748.0,2747.0,4.1398]
[1643703806207,3.71787504,2747.9,2747.0,4.1398]
[1643703806403,3.71787504,2747.9,2746.9,3.6439]
[1643703806404,1.53597504,2747.8,2746.9,3.6439]
[1643703806605,2.1819,2747.7,2746.8,1.1673]
[1643703806804,2.1819,2747.7,2746.4,1.3895]
[1643703806805,1.53597504,2747.6,2746.4,1.3895]
[1643703807004,1.15135021,2746.5,2746.4,1.3895]
[1643703807203,1.15135021,2746.5,2746.4,0.1819]
[1643703807407,1.15135021,2746.5,2746.1,0.1819]
[1643703808712,1.15135021,2746.5,2745.8,0.1819]
[1643703808918,1.15135021,2746.5,2745.7,1.2347]
[1643703808919,2.12271062,2746.4,2745.7,1.2347]
[1643703809118,1.53671309,2746.3,2745.3,0.1819]
[1643703809312,2.6189,2746.2,2745.3,0.1819]
[1643703809513,3.35857309,2746.1,2745.3,0.1819]
[1643703809783,4.52615273,2746.0,2745.3,0.1819]
[1643703809971,0.9109182,2745.9,2745.3,0.1819]
[1643703810274,0.1821,2745.8,2745.3,0.1819]
[1643703810682,0.40519693,2745.7,2745.3,0.1819]
[1643703810880,0.7049603,2745.5,2745.3,0.1819]
[1643703812272,0.35015209,2744.9,2744.6,1.09297]
[1643703812472,0.35015209,2744.9,2744.7,0.3]
[1643703812672,0.35015209,2744.9,2744.8,2.7821]
[1643703812872,0.7255963,2745.0,2744.8,2.7821]
[1643703814098,0.39811924,2744.9,2744.8,2.7821]
[1643703814299,2.26066567,2745.8,2744.8,2.7821]
[1643703814700,0.1821,2745.8,2744.8,2.7821]
[1643703814931,0.1821,2745.9,2744.8,2.7821]
[1643703815400,0.1821,2745.9,2745.0,0.42034756]
[1643703815604,0.1821,2746.0,2745.1,0.20160428]
[1643703816201,0.1821,2746.0,2745.1,0.1821]
[1643703817016,0.34997261,2745.5,2745.1,0.20132352]
[1643703817253,0.34997261,2745.5,2745.1,0.4821]
[1643703817443,0.34997261,2745.5,2745.1,0.7821]
[1643703818090,0.32029997,2746.1,2745.2,0.18206]
[1643703818091,0.1821,2746.1,2745.2,0.18206]
[1643703818248,0.1821,2746.5,2745.4,0.02603305]
[1643703818446,2.24978145,2746.8,2745.5,0.6189]
[1643703818849,2.24978145,2746.8,2745.5,0.93790845]
[1643703819048,1.08431676,2745.9,2745.5,0.9189]
[1643703819251,1.08431676,2745.9,2745.6,0.91042]
[1643703819449,1.08431676,2745.9,2745.6,1.09248]
[1643703819650,0.1819,2747.0,2745.6,1.39248]
[1643703819852,0.1819,2747.0,2745.6,3.05400509]
[1643703820054,2.07842567,2747.0,2745.6,0.48206]
[1643703820651,2.07842567,2747.0,2745.6,0.18206]
[1643703820853,0.74595909,2746.3,2745.6,0.31898765]
[1643703821302,0.74595909,2746.3,2745.7,0.91046]
[1643703821506,0.74595909,2746.3,2745.8,0.3]
[1643703821705,0.74595909,2746.3,2745.8,0.6]
[1643703821909,1.0639406,2746.3,2745.8,0.6]
[1643703822911,1.0639406,2746.3,2745.8,0.4819]
[1643703823913,2.07842567,2747.0,2745.8,0.3]
[1643703824312,2.07842567,2747.0,2745.8,1.21042]
[1643703824611,2.07842567,2747.0,2745.8,0.91042]
[1643703824849,0.40521352,2746.2,2745.9,0.3]
[1643703825053,0.40521352,2746.2,2745.7,0.1819]
[1643703825250,0.40521352,2746.2,2745.6,1.8044]
[1643703825450,0.40521352,2746.2,2745.7,0.1819]
[1643703826059,0.83945433,2746.0,2745.7,0.1819]
[1643703826255,0.83945433,2746.0,2745.6,0.3]
[1643703826688,0.83945433,2746.0,2745.5,0.7819]
[1643703830298,0.83853054,2746.0,2745.5,0.7819]
[1643703830499,0.40521352,2746.2,2745.5,0.7819]
[1643703831897,1.1278226,2746.2,2745.5,0.7819]
[1643703832348,1.1278226,2746.2,2745.5,1.96396]
[1643703832751,1.1278226,2746.2,2745.5,1.7819]
[1643703833154,2.09102547,2746.8,2745.7,0.91047]
[1643703833349,2.0775538,2746.8,2745.8,0.4819]
[1643703833548,2.57483849,2747.0,2745.8,0.7819]
[1643703833749,2.57483849,2747.0,2745.8,0.6]
[1643703834151,0.38545575,2746.4,2745.8,0.6]
[1643703834355,0.38545575,2746.4,2745.9,0.1819]
[1643703835752,0.37563418,2746.4,2745.9,0.1819]
[1643703837600,0.1819,2747.0,2745.9,0.1819]
[1643703837811,2.45903748,2747.1,2746.0,28.05906]
[1643703838000,2.45903748,2747.1,2746.3,0.03309762]
[1643703838201,2.45903748,2747.1,2746.4,0.6189]
[1643703838426,2.45903748,2747.1,2746.5,0.93838951]
[1643703838606,3.8161,2747.9,2746.5,0.93838951]
[1643703838607,1.13655717,2747.7,2747.2,0.38482046]
[1643703838806,1.13655717,2747.7,2746.9,0.20522795]
[1643703839105,1.13655717,2747.7,2747.0,0.3]
[1643703839404,0.1819,2747.6,2747.0,0.3]
[1643703839609,0.1819,2747.6,2746.9,0.02332795]
[1643703839610,0.1819,2747.6,2746.9,0.32332795]
[1643703839851,0.1819,2747.6,2747.0,0.3]
[1643703840051,0.79630341,2747.2,2747.1,0.91008]
[1643703840752,0.79630341,2747.2,2747.0,0.3]
[1643703840955,1.24474297,2747.2,2746.8,2.42002]
[1643703841154,0.79630341,2747.2,2746.8,1.82002]
[1643703841355,1.3434,2748.1,2746.8,2.25702]
[1643703841553,1.3434,2748.1,2746.9,1.8974016]
[1643703841554,0.1819,2748.1,2746.9,1.8974016]
[1643703841758,1.53627489,2748.0,2746.9,1.8974016]
[1643703841956,0.1819,2747.9,2746.9,1.8974016]
[1643703842159,1.53627489,2747.8,2746.9,1.8974016]
[1643703842356,0.86544391,2747.3,2746.9,2.1974016]
[1643703842555,0.86544391,2747.3,2746.9,2.4974016]
[1643703842754,0.86544391,2747.3,2746.9,2.1974016]
[1643703842955,0.35408884,2747.6,2746.9,2.1974016]
[1643703843603,0.35408884,2747.6,2747.2,0.38636412]
[1643703843809,0.35408884,2747.6,2747.1,0.91007]
[1643703844002,0.35408884,2747.6,2747.2,0.3]
[1643703844404,1.14033974,2747.6,2747.2,0.3]
[1643703845309,0.68911884,2748.3,2747.3,2.0]
[1643703845509,1.53588991,2748.2,2747.3,3.41275061]
[1643703845707,2.45834791,2748.5,2747.4,0.48206]
[1643703845920,1.53585654,2748.4,2747.4,0.48206]
[1643703846106,1.53585654,2748.4,2747.4,0.50102374]
[1643703846318,0.44834122,2748.1,2747.6,0.43340157]
[1643703846504,0.44834122,2748.1,2747.6,1.34317157]
[1643703846704,0.44834122,2748.1,2747.7,0.1819]
[1643703847359,1.53595298,2748.0,2747.7,0.1819]
[1643703847559,1.53595298,2748.0,2747.6,1.0]
[1643703847757,0.1819,2748.6,2747.7,0.1819]
[1643703847956,1.53585552,2748.5,2747.7,0.4819]
[1643703848356,0.1819,2748.8,2747.7,0.1819]
[1643703848357,1.53585552,2748.4,2747.7,0.1819]
[1643703848559,1.53585552,2748.3,2747.9,0.40666439]
[1643703848763,1.53585552,2748.3,2747.7,0.7819]
[1643703848970,1.53585552,2748.3,2747.7,0.4819]
[1643703849159,1.53585552,2748.2,2747.7,0.4819]
[1643703849359,0.91790956,2748.5,2747.7,0.4819]
[1643703849559,1.53580319,2748.4,2747.7,0.4819]
[1643703849758,1.53580319,2748.4,2747.7,2.38481634]
[1643703849967,1.53580319,2748.4,2747.9,0.90978]
[1643703850161,1.53580319,2748.4,2748.1,0.37488859]
[1643703850560,1.53580319,2748.4,2747.9,1.50978]
[1643703852004,1.53580319,2748.4,2747.9,1.20978]
[1643703852608,1.53580319,2748.4,2747.9,2.11956]
[1643703853406,1.53580319,2748.4,2748.0,0.35399647]
[1643703853609,1.53580319,2748.4,2747.9,2.11853324]
[1643703854010,1.53580319,2748.4,2748.0,1.81952]
[1643703856645,1.53580319,2748.4,2748.1,0.90971]
[1643703856845,0.1819,2748.9,2748.1,3.7141784]
[1643703857146,1.53569784,2748.8,2748.3,2.72877]
[1643703857446,1.53569784,2748.8,2748.4,2.19424906]
[1643703857647,0.1819,2749.2,2748.4,2.49424906]
[1643703857949,0.37853047,2748.7,2748.4,2.11918]
[1643703858145,0.37853047,2748.7,2748.4,3.71293476]
[1643703858348,0.37853047,2748.7,2748.5,0.3]
[1643703858909,1.71764026,2748.6,2748.0,3.45134]
[1643703859105,0.1819,2748.6,2748.0,2.55654]
[1643703859607,1.53579444,2748.5,2748.0,1.81954]
[1643703859805,1.53579444,2748.5,2747.7,1.81967]
[1643703859806,0.1819,2748.4,2747.7,1.81967]
[1643703860205,0.39565178,2748.2,2747.8,0.3]
[1643703860408,0.39565178,2748.2,2747.7,2.17565823]
[1643703861006,0.1819,2748.5,2747.8,0.3]
[1643703861206,0.68911884,2749.1,2747.9,0.90983]
[1643703861207,1.53586734,2748.4,2747.9,0.90983]
[1643703861407,0.1819,2749.0,2747.9,0.90983]
[1643703861609,1.53578429,2748.9,2747.9,0.90983]
[1643703861810,0.1819,2748.8,2747.9,1.20983]
[1643703862008,1.53578429,2748.7,2747.9,1.20983]
[1643703862253,0.1819,2748.6,2747.9,1.20983]
[1643703862553,2.4904553,2748.5,2747.9,1.20983]
[1643703862758,0.32989864,2748.2,2747.9,0.90983]
[1643703862953,0.32989864,2748.2,2747.7,1.81967]
[1643703863259,0.32989864,2748.2,2747.8,0.3]
[1643703863858,0.1819,2748.4,2747.9,0.90983]
[1643703864059,0.1819,2748.9,2747.9,0.90983]
[1643703864259,0.1819,2748.9,2747.9,1.20983]
[1643703864461,0.1819,2748.9,2747.9,0.3]
[1643703864659,0.68911884,2749.1,2747.8,1.6096]
[1643703864660,0.1819,2749.0,2747.8,1.6096]
[1643703864895,0.36200245,2748.2,2747.8,1.6096]
[1643703865060,0.1819,2749.0,2747.8,1.4277]
[1643703865262,1.53580011,2748.9,2748.0,2.11951]
[1643703865460,1.71770011,2748.8,2748.2,1.81944]
[1643703865765,1.53580011,2748.7,2748.2,0.90972]
[1643703866004,0.1819,2749.1,2748.2,1.20972]
[1643703866202,0.35591827,2748.8,2748.3,0.34823476]
[1643703866403,0.35591827,2748.8,2748.2,1.20972]
[1643703866802,0.35591827,2748.8,2748.4,0.90961]
[1643703867037,0.35591827,2748.8,2748.3,1.81921]
[1643703867208,1.7176459,2748.7,2747.9,0.1819]
[1643703867404,0.80568521,2748.2,2747.9,0.1819]
[1643703867605,0.1819,2748.5,2747.9,0.1819]
[1643703867805,1.53589425,2748.4,2747.9,0.1819]
[1643703868007,1.53589425,2748.3,2747.6,0.1819]
[1643703868206,0.2950944,2748.9,2747.6,0.1819]
[1643703868411,1.53590371,2748.8,2747.6,0.1819]
[1643703868610,0.1819,2748.7,2747.6,0.1819]
[1643703868814,1.53590371,2748.6,2747.6,0.1819]
[1643703869013,0.41336395,2748.1,2747.7,1.81966]
[1643703869850,0.83368639,2748.4,2747.7,1.81966]
[1643703870055,1.53587765,2748.3,2747.7,2.7295453]
[1643703870253,0.1819,2748.8,2747.8,0.3]
[1643703870454,1.53584824,2748.7,2747.8,0.3]
[1643703870860,1.71774824,2748.6,2747.8,0.3]
[1643703871061,0.86805983,2748.3,2747.8,0.3]
[1643703871273,0.1819,2748.9,2747.8,0.3]
[1643703871455,1.53583442,2748.8,2747.8,0.3]
[1643703871657,0.3763233,2748.1,2747.8,0.3]
[1643703872661,0.80050833,2748.3,2747.8,0.3]
[1643703872861,9.93306115,2749.7,2748.2,1.0]
[1643703872862,0.6960317,2749.2,2748.2,1.0]
[1643703873062,1.53551091,2749.1,2748.9,0.01274394]
[1643703873263,1.53551091,2749.5,2748.9,0.01274394]
[1643703873513,1.48443441,2749.4,2749.0,0.20491291]
[1643703873711,0.34869345,2749.7,2749.0,0.20491291]
[1643703873903,0.91463647,2749.2,2749.1,0.90947]
[1643703874307,0.91463647,2749.2,2749.1,0.3]
[1643703874308,2.37319755,2749.2,2749.1,0.3]
[1643703874706,2.37319755,2749.2,2748.8,0.3]
[1643703875006,1.45856108,2749.1,2748.7,3.9379552]
[1643703875208,0.33583458,2749.0,2748.7,0.3]
[1643703875409,1.45877287,2748.9,2748.2,0.1817]
[1643703875611,1.64067287,2748.9,2748.0,1.1432]
[1643703875813,1.64067287,2748.9,2747.8,0.1819]
[1643703876010,1.45877287,2748.8,2747.8,0.1819]
[1643703876213,0.1819,2748.7,2747.8,0.1819]
[1643703876409,0.73469753,2748.3,2747.8,0.1819]
[1643703876610,0.43174556,2747.9,2747.8,0.1819]
[1643703876808,0.43174556,2747.9,2747.8,0.4819]
[1643703878858,0.38857101,2747.9,2747.8,0.55868853]
[1643703880056,0.1819,2748.8,2747.8,2.55868853]
[1643703880257,1.46524275,2748.7,2748.0,1.81957]
[1643703880457,1.46524275,2748.7,2748.1,0.07678853]
[1643703880861,1.46524275,2748.6,2748.1,0.07678853]
[1643703881110,2.35965327,2748.5,2748.1,0.07678853]
[1643703881312,2.35965327,2748.5,2748.1,0.98657853]
[1643703881313,1.46524275,2748.4,2748.1,0.98657853]
[1643703881515,1.46524275,2748.4,2748.2,0.3]
[1643703882711,1.46524275,2748.4,2748.1,0.90979]
[1643703882912,1.46524275,2748.4,2748.2,0.07678576]
[1643703883518,1.46524275,2748.4,2748.0,1.81957]
[1643703883715,1.46524275,2748.4,2748.1,0.07678769]
[1643703884756,0.89441052,2748.5,2748.0,1.81957]
[1643703884958,1.46993663,2748.4,2748.1,0.07678902]
[1643703885356,0.41928573,2748.2,2748.1,0.07678902]
[1643703885758,1.88922236,2748.2,2748.1,0.07678902]
[1643703886971,2.07112236,2748.2,2747.6,3.63955]
[1643703887162,2.07112236,2748.2,2747.3,4.73099]
[1643703887163,2.15317664,2748.1,2747.7,0.07679578]
[1643703887361,2.33507664,2748.0,2747.1,5.0613]
[1643703887560,2.15317664,2747.9,2747.2,0.0768053]
[1643703887756,2.15317664,2747.9,2747.0,6.40009997]
[1643703887757,0.1819,2747.8,2747.3,0.0768053]
[1643703887957,0.1819,2747.8,2747.0,6.40009997]
[1643703887958,1.46993663,2747.7,2747.4,0.0768053]
[1643703888159,0.81008898,2747.5,2746.9,2.00211]
[1643703888421,0.81008898,2747.5,2746.9,1.82021]
[1643703888607,1.46993663,2747.4,2747.0,0.07680775]
[1643703889222,0.43035094,2747.2,2746.4,0.1819]
[1643703889414,0.69515435,2747.0,2746.5,0.07682685]
[1643703889610,0.80651685,2746.4,2746.0,0.07682685]
[1643703889811,1.46993663,2746.3,2746.1,0.07683119]
[1643703890011,1.46993663,2746.3,2746.2,0.07683119]
[1643703890412,1.86984269,2746.3,2745.7,0.7569696]
[1643703890608,0.39990606,2746.3,2745.8,0.07683119]
[1643703890809,0.39580652,2746.3,2745.8,1.16925119]
[1643703891010,0.39580652,2746.3,2745.9,0.07683119]
[1643703891211,0.39580652,2746.3,2745.9,0.37683119]
[1643703891410,0.39580652,2746.3,2746.0,0.07683119]
[1643703891914,0.39580652,2746.3,2746.1,0.67076005]
[1643703892111,0.39580652,2746.3,2746.2,0.07683119]
[1643703892561,1.3384,2747.1,2746.2,0.07683119]
[1643703892562,1.96543778,2747.0,2746.2,0.07683119]
[1643703892766,1.49131194,2746.9,2746.2,0.07683119]
[1643703893063,1.49131194,2746.8,2746.2,0.07683119]
[1643703893262,2.24598196,2747.2,2746.2,0.25873119]
[1643703893464,2.24598196,2747.2,2746.3,0.07683119]
[1643703893465,0.74274574,2746.8,2746.3,0.07683119]
[1643703893863,0.74274574,2746.8,2746.3,0.98719119]
[1643703894164,7.2801,2747.3,2746.3,0.98719119]
[1643703894165,7.2801,2747.3,2746.4,0.1819]
[1643703894373,7.2801,2747.3,2746.5,0.07683119]
[1643703894569,7.2801,2747.3,2746.6,0.36396]
[1643703894765,7.2801,2747.3,2746.7,0.07683119]
[1643703894965,7.2801,2747.3,2746.8,0.1819]
[1643703895164,0.34013915,2747.2,2746.9,0.07683119]
[1643703896697,2.24619975,2747.2,2746.9,0.07683119]
[1643703896896,2.24619975,2747.2,2746.8,0.1819]
[1643703896897,2.10251068,2747.1,2746.8,0.1819]
[1643703897301,0.91205546,2747.0,2746.8,0.1819]
[1643703897499,1.89017013,2746.9,2746.8,0.1819]
[1643703897708,0.91205546,2747.0,2746.8,0.1819]
[1643703898100,1.90532319,2746.9,2746.8,0.1819]
[1643703898302,0.91205546,2747.0,2746.8,0.1819]
[1643703900160,0.91205546,2747.0,2746.7,1.21036]
[1643703900561,1.92303262,2746.9,2746.7,1.21036]
[1643703900972,0.91205546,2747.0,2746.7,1.21036]
[1643703901570,0.1819,2747.1,2746.7,1.21036]
[1643703901769,0.34013915,2747.2,2746.7,1.51036]
[1643703901971,0.34013915,2747.2,2746.8,0.07681038]
[1643703903172,0.34013915,2747.2,2746.9,0.91024]
[1643703903374,0.34013915,2747.2,2747.0,0.3]
[1643703905204,1.90135797,2747.1,2747.0,0.3]
[1643703905407,0.34013915,2747.2,2747.0,0.3]
[1643703910361,0.34013915,2747.2,2746.9,1.21024]
[1643703911206,0.33869996,2747.2,2746.9,1.21024]
[1643703916650,1.99585471,2747.1,2746.9,0.3]
[1643703916851,1.99585471,2747.1,2746.6,0.3]
[1643703917052,1.48857545,2747.0,2746.6,0.6]
[1643703917253,1.95950155,2746.9,2746.5,0.1819]
[1643703917451,1.95950155,2746.9,2746.3,1.1784]
[1643703917650,0.35809626,2746.7,2746.3,1.1784]
[1643703918057,0.35809626,2746.7,2746.3,2.99924]
[1643703918251,0.35809626,2746.7,2746.3,1.82084]
[1643703919102,0.35809626,2746.7,2746.3,2.42084]
[1643703919704,0.35809626,2746.7,2746.4,0.07682053]
[1643703919932,0.35809626,2746.7,2746.4,0.98723053]
[1643703920103,0.35809626,2746.7,2746.5,0.6]
[1643703920707,0.35809626,2746.7,2746.5,0.3]
[1643703922018,0.35809626,2746.7,2746.5,0.6]
[1643703922454,2.13775299,2747.2,2746.5,0.6]
[1643703922455,0.1819,2747.2,2746.5,0.6]
[1643703922651,1.49103073,2747.1,2746.7,0.91035]
[1643703923083,1.49103073,2747.1,2746.7,1.21035]
[1643703924200,1.83704001,2747.7,2746.8,2.0]
[1643703924357,0.182,2747.8,2746.9,1.3473]
[1643703924658,0.68324001,2748.2,2747.0,2.69698581]
[1643703924860,0.68324001,2748.5,2747.1,1.437]
[1643703925055,0.41138437,2748.2,2747.7,1.08602509]
[1643703925265,0.1819,2748.8,2747.9,0.93530271]
[1643703925266,0.68324001,2748.7,2747.9,0.93530271]
[1643703925461,0.68324001,2748.7,2747.9,1.84509271]
[1643703925656,0.68324001,2748.7,2747.9,2.14509271]
[1643703925860,0.68324001,2748.7,2748.0,0.3]
[1643703926101,0.68324001,2748.7,2747.9,0.95750521]
[1643703926307,0.86514001,2748.8,2747.9,0.95750521]
[1643703926706,0.68324001,2748.7,2747.9,0.95750521]
[1643703926903,0.78646451,2748.6,2748.0,0.9098]
[1643703927404,0.37559606,2748.1,2748.0,1.2098]
[1643703927805,0.78646451,2748.6,2748.0,1.2098]
[1643703928408,0.68324001,2748.8,2748.1,2.1819]
[1643703928409,0.02403479,2748.8,2748.1,2.1819]
[1643703928617,1.09173,2749.4,2748.1,4.18301]
[1643703928618,0.1819,2749.4,2748.1,4.18301]
[1643703928812,0.40844497,2748.6,2748.2,0.437]
[1643703929008,0.91098668,2749.5,2748.5,0.90957]
[1643703929211,0.91098668,2749.6,2748.6,0.4817]
[1643703929409,0.91098668,2749.7,2748.6,0.7817]
[1643703929606,0.1817,2749.6,2748.7,0.73509931]
[1643703929853,0.40601697,2749.1,2748.8,0.90955]
[1643703932461,0.40601697,2749.1,2748.8,1.20955]
[1643703932860,0.40601697,2749.1,2748.8,0.90955]
[1643703933064,0.40601697,2749.1,2748.7,2.11894]
[1643703933267,0.40601697,2749.1,2748.7,2.41894]
[1643703933712,0.74585186,2748.9,2748.1,0.90984]
[1643703933912,2.64780378,2748.8,2747.9,1.338]
[1643703934109,0.36560683,2748.0,2747.7,3.8862]
[1643703934313,2.65831982,2748.8,2747.7,1.0918271]
[1643703934509,0.19131414,2748.8,2747.7,2.0017271]
[1643703934708,2.13323772,2748.8,2747.7,2.0017271]
[1643703934910,0.1819,2748.8,2748.1,0.93226676]
[1643703935108,0.74585186,2748.9,2748.1,0.6]
[1643703935308,0.35128383,2748.4,2748.1,0.6]
[1643703935611,0.1819,2748.8,2748.0,0.34036146]
[1643703935915,0.74585186,2748.9,2748.1,1.39167]
[1643703936108,0.74585186,2748.9,2748.2,0.9097557]
[1643703936315,0.74585186,2748.9,2748.3,0.3]
[1643703936608,0.43555651,2748.6,2748.3,0.3]
[1643703941119,0.1819,2749.1,2748.3,0.3]
[1643703941311,2.18267639,2749.2,2748.4,0.90973]
[1643703941517,2.18267639,2749.2,2748.5,0.6]
[1643703942411,0.1819,2749.2,2748.5,0.6]
[1643703943217,0.87508967,2748.8,2748.5,0.6]
[1643703944215,1.43981493,2748.7,2748.5,0.6]
[1643703944616,0.3274069,2748.7,2748.5,0.6]
[1643703946175,0.3274069,2748.7,2748.3,0.1819]
[1643703946975,0.3274069,2748.7,2748.4,0.90973]
[1643703947175,0.3274069,2748.7,2748.5,0.3]
[1643703947375,0.3274069,2748.7,2748.5,0.6]
[1643703947777,1.10708423,2748.7,2748.5,0.6]
[1643703947975,1.10708423,2748.7,2748.2,1.8195157]
[1643703948176,3.54890157,2748.6,2747.9,1.81959]
[1643703948379,1.40941403,2748.5,2747.9,1.81959]
[1643703948639,1.40941403,2748.5,2748.0,0.1819]
[1643703948822,2.0,2748.4,2747.8,0.1819]
[1643703949028,2.0,2748.4,2747.5,0.1819]
[1643703949029,0.82733794,2747.9,2747.5,0.1819]
[1643703949230,0.82733794,2747.9,2747.4,0.1819]
[1643703949231,0.00810929,2747.9,2747.4,0.1819]
[1643703949426,0.19741195,2748.5,2747.4,0.1819]
[1643703949626,1.40993336,2748.4,2747.4,0.1819]
[1643703949828,0.44361348,2747.9,2747.4,0.1819]
[1643703955087,0.88966514,2748.1,2747.5,0.10592002]
[1643703955289,0.1819,2748.4,2747.5,0.10592002]
[1643703955490,1.41491029,2748.3,2747.6,0.1819]
[1643703955690,0.1819,2748.8,2747.7,0.10592002]